bitfinex/quotes_BTCUSD_20250223
["timestamp","ask_amount","ask_price","bid_price","bid_amount"]
[1740343196483,0.19499824,95859.0,95851.0,0.27308362]
[1740343196699,0.19499824,95859.0,95851.0,0.48173962]
[1740343196898,0.156482,95858.0,95851.0,0.48173962]
[1740343197240,0.156482,95858.0,95851.0,0.48073962]
[1740343197597,0.156482,95858.0,95851.0,0.48173962]
[1740343197776,0.156482,95858.0,95851.0,0.48073962]
[1740343198117,0.156482,95858.0,95853.0,0.156489]
[1740343198418,0.156482,95858.0,95854.0,0.01153012]
[1740343198738,0.157482,95858.0,95854.0,0.01153012]
[1740343198965,0.161482,95858.0,95854.0,0.01153012]
[1740343199202,0.162482,95858.0,95854.0,0.01153012]
[1740343199395,0.1641822,95858.0,95854.0,0.01153012]
[1740343199644,0.0077002,95858.0,95854.0,0.01153012]
[1740343199804,0.0087002,95858.0,95854.0,0.01253012]
[1740343200155,0.0087002,95858.0,95855.0,0.0115301]
[1740343200377,0.0037002,95858.0,95855.0,0.0115301]
[1740343200915,0.0027002,95858.0,95855.0,0.0115301]
[1740343201116,0.0017002,95858.0,95855.0,0.0115301]
[1740343201332,0.0027002,95858.0,95855.0,0.0125301]
[1740343201785,0.0027002,95858.0,95855.0,0.0135301]
[1740343201988,0.0037002,95858.0,95855.0,0.0135301]
[1740343203642,0.0037002,95858.0,95856.0,0.25869551]
[1740343204130,0.0037002,95858.0,95857.0,0.01153007]
[1740343204809,0.0017002,95858.0,95857.0,0.01153007]
[1740343204963,0.0027002,95858.0,95857.0,0.01153007]
[1740343205506,0.0017002,95858.0,95857.0,0.01153007]
[1740343205721,0.0027002,95858.0,95857.0,0.01253007]
[1740343206514,0.0027002,95858.0,95857.0,0.01353007]
[1740343207107,0.0027002,95858.0,95857.0,0.01253007]
[1740343207323,0.0017002,95858.0,95857.0,0.01153007]
[1740343207552,0.0017002,95858.0,95857.0,0.01253007]
[1740343207795,0.0027002,95858.0,95857.0,0.01353007]
[1740343208476,0.0017002,95858.0,95857.0,0.01253007]
[1740343208689,0.0027002,95858.0,95857.0,0.01353007]
[1740343209130,0.0027002,95858.0,95857.0,0.01253007]
[1740343209400,0.0037002,95858.0,95857.0,0.01253007]
[1740343209589,0.0037002,95858.0,95857.0,0.27122558]
[1740343209806,0.0037002,95858.0,95857.0,0.27222558]
[1740343210218,0.0037002,95858.0,95857.0,0.27122558]
[1740343210654,0.0037002,95858.0,95857.0,0.27222558]
[1740343212884,0.0037002,95858.0,95857.0,0.27122558]
[1740343213272,0.0037002,95858.0,95857.0,0.42870858]
[1740343213953,0.0017002,95858.0,95857.0,0.42770858]
[1740343214161,0.0017002,95858.0,95857.0,0.42870858]
[1740343214162,0.0027002,95858.0,95857.0,0.42870858]
[1740343214367,0.0027002,95858.0,95857.0,0.42670858]
[1740343214565,0.0032002,95858.0,95857.0,0.42670858]
[1740343214777,0.0042002,95858.0,95857.0,0.42770858]
[1740343215666,0.0042002,95858.0,95857.0,0.27222558]
[1740343216939,0.0022002,95858.0,95857.0,0.27122558]
[1740343217157,0.0022002,95858.0,95857.0,0.42770858]
[1740343217586,0.0032002,95858.0,95857.0,0.42870858]
[1740343218032,0.0022002,95858.0,95857.0,0.42770858]
[1740343218294,0.0032002,95858.0,95857.0,0.42870858]
[1740343219187,0.0032002,95858.0,95857.0,0.27222558]
[1740343223971,0.0032002,95858.0,95857.0,0.27307568]
[1740343224400,0.0032002,95858.0,95857.0,0.42955868]
[1740343225077,0.0022002,95858.0,95857.0,0.42855868]
[1740343225519,0.0032002,95858.0,95857.0,0.42955868]
[1740343225985,0.0032002,95858.0,95857.0,0.42855868]
[1740343226422,0.0032002,95858.0,95857.0,0.42955868]
[1740343226624,0.0022002,95858.0,95857.0,0.42855868]
[1740343226765,0.0022002,95858.0,95857.0,0.42755868]
[1740343227121,0.0032002,95858.0,95857.0,0.42855868]
[1740343227355,0.0032002,95858.0,95857.0,0.42755868]
[1740343227518,0.0042002,95858.0,95857.0,0.42855868]
[1740343227746,0.0032002,95858.0,95857.0,0.42755868]
[1740343228124,0.0042002,95858.0,95857.0,0.42855868]
[1740343228589,0.0042002,95858.0,95857.0,0.42755868]
[1740343228790,0.0042002,95858.0,95857.0,0.42855868]
[1740343231321,0.0042002,95858.0,95857.0,0.42755868]
[1740343231520,0.0022002,95858.0,95857.0,0.42755868]
[1740343231764,0.0032002,95858.0,95857.0,0.42755868]
[1740343231991,0.0032002,95858.0,95857.0,0.42855868]
[1740343232227,0.0042002,95858.0,95857.0,0.42855868]
[1740343232475,0.0042002,95858.0,95857.0,0.42755868]
[1740343232916,0.0042002,95858.0,95857.0,0.42855868]
[1740343236154,0.0042002,95858.0,95857.0,0.27207568]
[1740343239934,0.1606812,95858.0,95857.0,0.27207568]
[1740343240272,0.0042002,95858.0,95857.0,0.27207568]
[1740343240707,0.0042002,95858.0,95857.0,0.26054561]
[1740343241114,0.1606812,95858.0,95857.0,0.27207226]
[1740343241518,0.0042002,95858.0,95857.0,0.27207226]
[1740343242542,0.1606812,95858.0,95857.0,0.27207226]
[1740343267959,0.208636,95861.0,95857.0,0.27207226]
[1740343268185,0.156481,95858.0,95857.0,0.27207226]
[1740343291384,0.0017002,95859.0,95858.0,0.156481]
[1740343291787,0.0017002,95859.0,95858.0,0.01170638]
[1740343292048,0.0017002,95859.0,95858.0,0.16818738]
[1740343293075,0.0017002,95859.0,95858.0,0.16918738]
[1740343294488,0.0017002,95859.0,95858.0,0.24698738]
[1740343295833,0.0017002,95859.0,95858.0,0.24598738]
[1740343296056,0.0017002,95859.0,95858.0,0.24698738]
[1740343298635,0.0017002,95859.0,95858.0,0.50568289]
[1740343298872,0.0017002,95859.0,95858.0,0.55418289]
[1740343299667,0.0017002,95859.0,95858.0,0.55318289]
[1740343300989,0.0017002,95859.0,95858.0,0.55418289]
[1740343301612,0.0017002,95859.0,95858.0,0.55318289]
[1740343302453,0.0017002,95859.0,95858.0,1.09788289]
[1740343302649,0.0017002,95859.0,95858.0,1.13046484]
[1740343304423,0.0017002,95859.0,95858.0,1.15106756]
[1740343304682,0.0017002,95859.0,95858.0,1.25371325]
[1740343304908,0.0017002,95859.0,95858.0,1.25456335]
[1740343306746,0.0017002,95859.0,95858.0,1.25556335]
[1740343308705,0.0017002,95859.0,95858.0,1.34921003]
[1740343311623,0.0017002,95859.0,95858.0,1.31662808]
[1740343312040,0.0017002,95859.0,95858.0,1.2229814]
[1740343330716,0.0017002,95859.0,95858.0,1.2555292]
[1740343347962,0.0017002,95859.0,95858.0,1.2545292]
[1740343348455,0.0017002,95859.0,95858.0,1.2565292]
[1740343364264,0.0017006,95882.0,95858.0,1.2565292]
[1740343364265,0.08365969,95888.0,95886.0,0.156435]
[1740343364971,0.08365969,95888.0,95887.0,0.01157766]
[1740343365421,0.07180154,95888.0,95886.0,0.001]
[1740343365563,0.07180154,95888.0,95887.0,0.01157766]
[1740343365564,0.0722327,95888.0,95887.0,0.01157766]
[1740343366603,0.0722327,95888.0,95887.0,0.001]
[1740343366889,0.0722327,95888.0,95887.0,0.01257766]
[1740343367390,0.0722327,95888.0,95887.0,0.01357766]
[1740343369374,0.0762,95890.0,95889.0,0.15643]
[1740343369603,0.07629442,95890.0,95889.0,0.15643]
[1740343369800,0.07629442,95890.0,95889.0,0.01157763]
[1740343370551,0.07629442,95890.0,95889.0,0.01257763]
[1740343371153,0.07629442,95890.0,95889.0,0.01357763]
[1740343371912,9.442e-05,95890.0,95889.0,0.17000763]
[1740343372624,9.442e-05,95890.0,95889.0,0.01357763]
[1740343374588,0.00094432,95890.0,95889.0,0.01357763]
[1740343385791,0.00094432,95890.0,95889.0,0.01527743]
[1740343393248,0.15737332,95890.0,95889.0,0.01527743]
[1740343408622,0.2102686,95892.0,95889.0,0.01527743]
[1740343409166,0.156429,95890.0,95889.0,0.01527743]
[1740343409367,0.156429,95890.0,95889.0,0.01327743]
[1740343409848,0.156429,95890.0,95889.0,0.01427743]
[1740343410064,0.156429,95890.0,95889.0,0.01327743]
[1740343410298,0.156429,95890.0,95889.0,0.01427743]
[1740343410963,0.156429,95890.0,95889.0,0.01527743]
[1740343411441,0.156429,95890.0,95889.0,0.01427743]
[1740343411649,0.156429,95890.0,95889.0,0.01527743]
[1740343420205,0.1572789,95890.0,95889.0,0.01527743]
[1740343427391,0.0008499,95890.0,95889.0,0.01527743]
[1740343427618,0.1572789,95890.0,95889.0,0.01527743]
[1740343434773,0.0008499,95890.0,95889.0,0.01527743]
[1740343436066,0.1572789,95890.0,95889.0,0.01527743]
[1740343436954,0.0008499,95890.0,95889.0,0.09667743]
[1740343437133,0.1572789,95890.0,95889.0,0.09667743]
[1740343437684,0.0008499,95890.0,95889.0,0.25310743]
[1740343437896,0.0008499,95890.0,95889.0,0.09667743]
[1740343438041,0.0008499,95890.0,95889.0,0.25310743]
[1740343442461,0.0008499,95890.0,95889.0,0.51180294]
[1740343443387,0.0008499,95890.0,95889.0,0.51080294]
[1740343443619,0.0008499,95890.0,95889.0,0.50980294]
[1740343444077,0.0008499,95890.0,95889.0,0.51080294]
[1740343445706,0.0008499,95890.0,95889.0,0.50980294]
[1740343445823,0.0008499,95890.0,95889.0,0.51080294]
[1740343451683,0.09331766,95910.0,95896.0,0.156417]
[1740343451910,0.15641,95902.0,95896.0,0.41511351]
[1740343452104,0.15641,95902.0,95897.0,0.16793748]
[1740343453252,0.208542,95904.0,95897.0,0.01152048]
[1740343453473,0.15641,95902.0,95897.0,0.01152048]
[1740343453699,0.15641,95902.0,95897.0,0.01252048]
[1740343454098,0.1572599,95902.0,95897.0,0.01252048]
[1740343454273,0.1572599,95902.0,95897.0,0.01352048]
[1740343454868,0.1572599,95902.0,95897.0,0.16993748]
[1740343455621,0.1572599,95902.0,95897.0,0.16893748]
[1740343455827,0.0008499,95902.0,95897.0,0.01352048]
[1740343456043,0.0008499,95902.0,95898.0,0.156416]
[1740343456327,0.0008499,95902.0,95898.0,0.16793647]
[1740343457271,0.0008499,95902.0,95898.0,0.16993647]
[1740343457468,0.0008499,95902.0,95898.0,0.01352047]
[1740343458874,0.156414,95899.0,95898.0,0.01352047]
[1740343459083,0.27360054,95899.0,95898.0,0.01352047]
[1740343459529,0.27360054,95899.0,95898.0,0.002]
[1740343459724,0.27360054,95899.0,95898.0,0.001]
[1740343459929,0.27360054,95899.0,95872.0,0.25869551]
[1740343460161,0.156429,95890.0,95872.0,0.25869551]
[1740343460374,0.25907469,95890.0,95872.0,0.25869551]
[1740343461831,0.25907469,95890.0,95889.0,0.0026998]
[1740343462040,0.25907469,95890.0,95889.0,0.0036998]
[1740343462424,0.25907469,95890.0,95889.0,0.0016998]
[1740343462638,0.27207469,95890.0,95889.0,0.0026998]
[1740343464198,0.169429,95890.0,95889.0,0.0026998]
[1740343464446,0.169429,95890.0,95889.0,0.01422621]
[1740343464671,0.013,95890.0,95889.0,0.01422621]
[1740343464873,0.169429,95890.0,95889.0,0.01422621]
[1740343465302,0.013,95890.0,95889.0,0.0026998]
[1740343465545,0.0138499,95890.0,95889.0,0.01423347]
[1740343466029,0.0138499,95890.0,95889.0,0.0026998]
[1740343466232,0.1702789,95890.0,95889.0,0.0026998]
[1740343468550,0.1702789,95890.0,95889.0,0.01423347]
[1740343468805,0.1702789,95890.0,95889.0,0.0026998]
[1740343469011,0.1702789,95890.0,95889.0,0.01423347]
[1740343469247,0.1702789,95890.0,95889.0,0.0026998]
[1740343469459,0.1702789,95890.0,95889.0,0.01423347]
[1740343531866,0.208569,95892.0,95889.0,0.01423347]
[1740343532074,0.20117372,95892.0,95889.0,0.01423347]
[1740343532283,0.156429,95890.0,95889.0,0.01423347]
[1740343534166,0.156429,95890.0,95889.0,0.01323347]
[1740343534570,0.156429,95890.0,95889.0,0.01423347]
[1740343534989,0.156429,95890.0,95889.0,0.01323347]
[1740343535220,0.157429,95890.0,95889.0,0.01423347]
[1740343535437,0.001,95890.0,95889.0,0.01423347]
[1740343536575,0.001,95890.0,95889.0,0.09083347]
[1740343542077,0.208555,95898.0,95889.0,0.09083347]
[1740343542284,0.156424,95893.0,95889.0,0.09083347]
[1740343542524,0.208562,95895.0,95889.0,0.09083347]
[1740343542703,0.156422,95894.0,95889.0,0.09083347]
[1740343543114,0.208562,95895.0,95889.0,0.09083347]
[1740343543627,0.10264569,95897.0,95889.0,0.09083347]
[1740343544002,0.156425,95893.0,95889.0,0.09083347]
[1740343544227,0.156425,95893.0,95889.0,0.09183347]
[1740343544431,0.156425,95893.0,95889.0,0.09083347]
[1740343545724,0.156425,95893.0,95889.0,0.08983347]
[1740343545924,0.156425,95893.0,95889.0,0.09083347]
[1740343546135,0.156423,95894.0,95889.0,0.09083347]
[1740343546371,0.156424,95893.0,95889.0,0.09083347]
[1740343547217,0.156423,95894.0,95889.0,0.09083347]
[1740343547426,0.156423,95894.0,95889.0,0.09183347]
[1740343547635,0.156423,95894.0,95889.0,0.09083347]
[1740343547836,0.156423,95894.0,95889.0,0.08983347]
[1740343548049,0.156423,95894.0,95889.0,0.09083347]
[1740343548496,0.156423,95894.0,95889.0,0.09183347]
[1740343552059,0.156421,95895.0,95889.0,0.09183347]
[1740343552259,0.156421,95895.0,95890.0,0.156428]
[1740343552559,0.31205379,95897.0,95891.0,0.01150408]
[1740343552743,0.156422,95894.0,95891.0,0.01150408]
[1740343553043,0.156422,95894.0,95892.0,0.01150638]
[1740343553405,0.10349579,95897.0,95890.0,0.156429]
[1740343553634,0.10349579,95897.0,95893.0,0.01150636]
[1740343553870,0.156422,95895.0,95889.0,0.4443008]
[1740343554022,0.10349579,95897.0,95894.0,0.01150635]
[1740343554223,0.10349579,95897.0,95894.0,0.16792735]
[1740343554444,0.10349579,95897.0,95894.0,0.01150635]
[1740343554667,0.10349579,95897.0,95894.0,0.16792835]
[1740343554890,0.0008501,95897.0,95894.0,0.01150635]
[1740343555526,0.1572681,95897.0,95894.0,0.01150635]
[1740343555778,0.1572681,95897.0,95894.0,0.01250635]
[1740343556321,0.1572681,95897.0,95894.0,0.01350635]
[1740343556544,0.1572671,95897.0,95894.0,0.01250635]
[1740343556768,0.0008501,95897.0,95894.0,0.01250635]
[1740343557139,0.0008501,95897.0,95894.0,0.01150635]
[1740343557332,0.15642,95896.0,95894.0,0.001]
[1740343557542,0.15642,95896.0,95895.0,0.01150622]
[1740343558553,0.156421,95895.0,95894.0,0.001]
[1740343559135,0.156421,95895.0,95890.0,0.156429]
[1740343559344,0.156423,95894.0,95889.0,0.2347298]
[1740343560421,0.156423,95894.0,95889.0,0.0782998]
[1740343560641,0.208559,95896.0,95889.0,0.2347298]
[1740343560829,0.156422,95894.0,95889.0,0.2347298]
[1740343561004,0.156422,95894.0,95889.0,0.0782998]
[1740343561199,0.156422,95894.0,95889.0,0.0792998]
[1740343561900,0.156425,95893.0,95889.0,0.0792998]
[1740343562088,0.0008501,95895.0,95889.0,0.0792998]
[1740343562089,0.156422,95894.0,95889.0,0.0792998]
[1740343562961,0.1572721,95895.0,95889.0,0.2357298]
[1740343563386,0.1572721,95895.0,95889.0,0.2347298]
[1740343563932,0.1572721,95895.0,95889.0,0.2357298]
[1740343564377,0.156422,95894.0,95889.0,0.0782998]
[1740343564732,0.156422,95894.0,95889.0,0.0792998]
[1740343565389,0.156422,95894.0,95889.0,0.0782998]
[1740343566808,0.156422,95894.0,95889.0,0.0792998]
[1740343567893,0.0008501,95895.0,95889.0,0.0792998]
[1740343568123,0.1572711,95895.0,95889.0,0.0792998]
[1740343569153,0.0008501,95895.0,95889.0,0.0792998]
[1740343569368,0.1572711,95895.0,95890.0,0.01150828]
[1740343570439,0.0008501,95895.0,95890.0,0.01150828]
[1740343570649,0.1572721,95895.0,95890.0,0.01150828]
[1740343571093,0.1572721,95895.0,95890.0,0.01250828]
[1740343571898,0.0008501,95895.0,95890.0,0.01250828]
[1740343572113,0.1572721,95895.0,95890.0,0.01250828]
[1740343575464,0.1572711,95895.0,95890.0,0.01250828]
[1740343576966,0.156422,95894.0,95890.0,0.01250828]
[1740343579041,0.156422,95894.0,95890.0,0.01150828]
[1740343579278,0.156422,95894.0,95890.0,0.01250828]
[1740343579683,0.1572711,95895.0,95890.0,0.01250828]
[1740343580356,0.156423,95894.0,95890.0,0.01250828]
[1740343580574,0.156423,95894.0,95890.0,0.01150828]
[1740343580972,0.156423,95894.0,95890.0,0.01250828]
[1740343581805,0.156424,95893.0,95890.0,0.01250828]
[1740343582064,0.156424,95893.0,95890.0,0.01150828]
[1740343582253,0.156423,95894.0,95890.0,0.01150828]
[1740343582476,0.156423,95894.0,95890.0,0.01250828]
[1740343582936,0.156423,95894.0,95890.0,0.01150828]
[1740343583229,0.156423,95894.0,95890.0,0.01250828]
[1740343583640,0.156423,95894.0,95890.0,0.01150828]
[1740343583862,0.2094121,95895.0,95890.0,0.01150828]
[1740343583863,0.156424,95893.0,95890.0,0.01150828]
[1740343584085,0.156424,95893.0,95890.0,0.01250828]
[1740343584441,0.156423,95894.0,95890.0,0.01250828]
[1740343584647,0.156424,95893.0,95890.0,0.01250828]
[1740343585763,0.156423,95894.0,95890.0,0.01150828]
[1740343585986,0.156423,95894.0,95890.0,0.01420848]
[1740343586739,0.156423,95894.0,95890.0,0.01320848]
[1740343587202,0.156423,95894.0,95890.0,0.01420848]
[1740343587698,0.156422,95894.0,95890.0,0.01420848]
[1740343589178,0.156422,95894.0,95890.0,0.01420848]
[1740343591152,0.2094121,95895.0,95890.0,0.01420848]
[1740343591310,0.1572721,95895.0,95890.0,0.01420848]
[1740343592005,0.156422,95894.0,95890.0,0.01320848]
[1740343592478,0.156422,95894.0,95890.0,0.01420848]
[1740343592853,0.156422,95894.0,95890.0,0.01320848]
[1740343593084,0.156422,95894.0,95890.0,0.01420848]
[1740343595771,0.156423,95894.0,95890.0,0.01420848]
[1740343597312,0.0008501,95895.0,95890.0,0.01420848]
[1740343597536,0.156423,95894.0,95890.0,0.01420848]
[1740343597999,0.0008501,95895.0,95890.0,0.01420848]
[1740343598000,0.1572711,95895.0,95890.0,0.01420848]
[1740343598227,0.0008501,95895.0,95891.0,0.156426]
[1740343598640,0.0008501,95895.0,95892.0,0.01151053]
[1740343599107,0.0008501,95895.0,95890.0,0.0017002]
[1740343599303,0.0008501,95895.0,95893.0,0.01151051]
[1740343599445,0.1572711,95895.0,95890.0,0.0027002]
[1740343599632,0.0008501,95895.0,95894.0,0.01151049]
[1740343599851,0.0008501,95895.0,95890.0,0.1581282]
[1740343600045,0.0008501,95895.0,95894.0,0.01151049]
[1740343600271,0.1572711,95895.0,95890.0,0.0017002]
[1740343600486,0.0008501,95895.0,95894.0,0.01151049]
[1740343601002,0.0008501,95895.0,95892.0,0.001]
[1740343601219,0.0008501,95895.0,95894.0,0.01151049]
[1740343601433,0.0008501,95895.0,95890.0,0.1581272]
[1740343601434,0.0008501,95895.0,95893.0,0.01151051]
[1740343601652,0.0008501,95895.0,95894.0,0.01151049]
[1740343601858,0.1572711,95895.0,95894.0,0.01251049]
[1740343602077,0.0008501,95895.0,95894.0,0.001]
[1740343602514,0.0008501,95895.0,95894.0,0.01251049]
[1740343603144,0.1572711,95895.0,95894.0,0.01251049]
[1740343605515,0.0008501,95895.0,95894.0,0.01251049]
[1740343605710,0.1572711,95895.0,95894.0,0.01251049]
[1740343609542,0.0008501,95895.0,95894.0,0.01251049]
[1740343610316,0.1572711,95895.0,95894.0,0.01251049]
[1740343610531,0.0008501,95895.0,95894.0,0.01251049]
[1740343610801,0.0008501,95895.0,95894.0,0.01421069]
[1740343612079,0.1572711,95895.0,95894.0,0.01421069]
[1740343623534,0.0008501,95895.0,95894.0,0.01421069]
[1740343626299,0.20855,95900.0,95894.0,0.01421069]
[1740343626537,0.156416,95898.0,95894.0,0.01421069]
[1740343627018,0.25906069,95899.0,95894.0,0.01421069]
[1740343627262,0.25906069,95899.0,95894.0,0.01321069]
[1740343627687,0.25906069,95899.0,95894.0,0.01421069]
[1740343627891,0.25906069,95899.0,95894.0,0.01521069]
[1740343628150,0.25906069,95899.0,95894.0,0.01321069]
[1740343628358,0.25906069,95899.0,95894.0,0.01421069]
[1740343628591,0.156416,95898.0,95894.0,0.01521069]
[1740343629642,0.156416,95898.0,95894.0,0.01421069]
[1740343629873,0.156416,95898.0,95894.0,0.01521069]
[1740343630087,0.156417,95898.0,95894.0,0.01521069]
[1740343630501,0.156417,95898.0,95894.0,0.01421069]
[1740343630945,0.156417,95898.0,95894.0,0.01521069]
[1740343631152,0.156416,95898.0,95894.0,0.01521069]
[1740343632347,0.10264569,95899.0,95894.0,0.01521069]
[1740343632578,0.156419,95897.0,95894.0,0.01521069]
[1740343633208,0.0008499,95902.0,95895.0,0.0756]
[1740343633439,0.0008499,95902.0,95896.0,0.208559]
[1740343633691,0.0008499,95902.0,95901.0,0.156411]
[1740343634129,0.0008499,95902.0,95901.0,0.0115122]
[1740343635253,0.0008499,95902.0,95901.0,0.1679232]
[1740343635823,0.0008499,95902.0,95901.0,0.1689232]
[1740343636248,0.0008499,95902.0,95901.0,0.1679232]
[1740343636664,0.0008499,95902.0,95901.0,0.1689232]
[1740343637069,0.0008499,95902.0,95901.0,0.0125122]
[1740343637269,0.0008499,95902.0,95901.0,0.1689232]
[1740343637756,0.0008499,95902.0,95901.0,0.0125122]
[1740343638153,0.0008499,95902.0,95901.0,0.1689232]
[1740343638587,0.0008499,95902.0,95901.0,0.0125122]
[1740343639662,0.0008499,95902.0,95901.0,0.1689232]
[1740343640392,0.0008499,95902.0,95901.0,0.0125122]
[1740343642675,0.0008499,95902.0,95901.0,0.1689232]
[1740343642902,0.0008499,95902.0,95901.0,0.2445232]
[1740343647360,0.0008499,95902.0,95901.0,0.2462234]
[1740343651318,0.0008499,95902.0,95901.0,0.2452234]
[1740343651521,0.0008499,95902.0,95901.0,0.2462234]
[1740343651985,0.0008499,95902.0,95901.0,0.2452234]
[1740343652178,0.0008499,95902.0,95901.0,0.2462234]
[1740343656628,0.16934003,95910.0,95901.0,0.2462234]
[1740343656865,0.25904469,95909.0,95904.0,0.156406]
[1740343657276,0.25904469,95909.0,95905.0,0.01150418]
[1740343658130,0.25904369,95909.0,95905.0,0.01150418]
[1740343658685,0.25904369,95909.0,95906.0,0.01150416]
[1740343658920,0.26694776,95909.0,95906.0,0.01150416]
[1740343659117,0.26694776,95909.0,95905.0,0.001]
[1740343659243,0.26694776,95909.0,95907.0,0.01150414]
[1740343659444,0.11054976,95909.0,95905.0,0.158404]
[1740343659673,0.11054976,95909.0,95908.0,0.01150413]
[1740343659887,0.11139986,95909.0,95905.0,0.001]
[1740343660090,0.26779786,95909.0,95908.0,0.01150413]
[1740343660292,0.26779786,95909.0,95905.0,0.001]
[1740343660555,0.26779786,95909.0,95908.0,0.01150413]
[1740343660766,0.26779786,95909.0,95905.0,0.001]
[1740343660935,0.26779786,95909.0,95906.0,0.001]
[1740343661143,0.26779786,95909.0,95906.0,0.01250416]
[1740343661355,0.26779786,95909.0,95905.0,0.001]
[1740343661556,0.26779786,95909.0,95907.0,0.01150414]
[1740343661802,0.26779786,95909.0,95908.0,0.001]
[1740343661945,0.11139986,95909.0,95908.0,0.01250413]
[1740343662147,0.11139986,95909.0,95908.0,0.001]
[1740343662357,0.11139986,95909.0,95904.0,0.156405]
[1740343662557,0.26779786,95909.0,95908.0,0.01150413]
[1740343662764,0.26779786,95909.0,95906.0,0.001]
[1740343662765,0.26779786,95909.0,95907.0,0.001]
[1740343662994,0.26779786,95909.0,95908.0,0.01150413]
[1740343663195,0.11139986,95909.0,95908.0,0.01250413]
[1740343663357,0.11139986,95909.0,95908.0,0.001]
[1740343663568,0.11139986,95909.0,95908.0,0.01250413]
[1740343664316,0.11139986,95909.0,95908.0,0.01350413]
[1740343667129,0.11139986,95909.0,95908.0,0.01250413]
[1740343667130,0.26779786,95909.0,95908.0,0.01250413]
[1740343667256,0.26779786,95909.0,95908.0,0.01350413]
[1740343667686,0.26779786,95909.0,95908.0,0.01250413]
[1740343668362,0.26779786,95909.0,95908.0,0.01350413]
[1740343668899,0.26779786,95909.0,95908.0,0.01450413]
[1740343672035,0.26779786,95909.0,95908.0,0.01620413]
[1740343676207,0.26779786,95909.0,95908.0,0.0047]
[1740343676409,0.26779786,95909.0,95908.0,0.0162074]
[1740343676643,0.26779786,95909.0,95908.0,0.0047]
[1740343676855,0.26779786,95909.0,95908.0,0.0162074]
[1740343677167,0.26779786,95909.0,95908.0,0.0047]
[1740343677250,0.26779786,95909.0,95908.0,0.0162074]
[1740343682683,0.26779786,95909.0,95908.0,0.0047]
[1740343683262,0.26779786,95909.0,95908.0,0.01620838]
[1740343683547,0.26779786,95909.0,95908.0,0.0047]
[1740343683743,0.26779786,95909.0,95908.0,0.01620264]
[1740343683982,0.26779786,95909.0,95908.0,0.0047]
[1740343684220,0.26779786,95909.0,95908.0,0.01620264]
[1740343684467,0.26779786,95909.0,95908.0,0.0047]
[1740343684704,0.26779786,95909.0,95908.0,0.01620264]
[1740343684830,0.26779786,95909.0,95908.0,0.0047]
[1740343685280,0.26779786,95909.0,95908.0,0.01620264]
[1740343686370,0.26779786,95909.0,95908.0,0.0047]
[1740343686587,0.26779786,95909.0,95908.0,0.01620264]
[1740343686793,0.26779786,95909.0,95908.0,0.0047]
[1740343687003,0.26779786,95909.0,95908.0,0.01620264]
[1740343687205,0.26779786,95909.0,95908.0,0.0047]
[1740343687625,0.26779786,95909.0,95908.0,0.01620264]
[1740343688067,0.26779786,95909.0,95908.0,0.0047]
[1740343689402,0.26779786,95909.0,95908.0,0.01620264]
[1740343689630,0.26779786,95909.0,95908.0,0.0047]
[1740343690315,0.26779786,95909.0,95908.0,0.01620264]
[1740343690511,0.26779786,95909.0,95908.0,0.0047]
[1740343690723,0.26779786,95909.0,95908.0,0.01620264]
[1740343690945,0.26779786,95909.0,95908.0,0.0047]
[1740343691536,0.11139986,95909.0,95908.0,0.01620264]
[1740343691753,0.11139986,95909.0,95908.0,0.0047]
[1740343691961,0.11139986,95909.0,95908.0,0.01620264]
[1740343692165,0.11139986,95909.0,95908.0,0.0047]
[1740343692317,0.11139986,95909.0,95908.0,0.01620264]
[1740343692566,0.11139986,95909.0,95908.0,0.0047]
[1740343692774,0.11139986,95909.0,95908.0,0.01420264]
[1740343692942,0.11139986,95909.0,95908.0,0.01520264]
[1740343693180,0.11139986,95909.0,95908.0,0.16960164]
[1740343693398,0.11139986,95909.0,95908.0,0.17060164]
[1740343693924,0.11139986,95909.0,95908.0,0.01420264]
[1740343694590,0.11139986,95909.0,95908.0,0.01320264]
[1740343695008,0.11139986,95909.0,95908.0,0.01420264]
[1740343695218,0.11139986,95909.0,95908.0,0.01520264]
[1740343695431,0.11139986,95909.0,95908.0,0.01420264]
[1740343695848,0.11139986,95909.0,95908.0,0.01520264]
[1740343696507,0.11139986,95909.0,95908.0,0.17160164]
[1740343697508,0.11139986,95909.0,95908.0,0.16960164]
[1740343697924,0.11139986,95909.0,95908.0,0.17160164]
[1740343698120,0.11139986,95909.0,95908.0,0.17060164]
[1740343698345,0.11139986,95909.0,95908.0,0.17160164]
[1740343698545,0.0008501,95909.0,95908.0,0.17160164]
[1740343698762,0.0008501,95909.0,95908.0,0.25090164]
[1740343698966,0.0008501,95909.0,95908.0,0.25190164]
[1740343699188,0.0008501,95909.0,95908.0,0.24990164]
[1740343699613,0.0008501,95909.0,95908.0,0.25190164]
[1740343700789,0.0008501,95909.0,95908.0,0.25090164]
[1740343701007,0.0008501,95909.0,95908.0,0.24990164]
[1740343701241,0.0008501,95909.0,95908.0,0.25090164]
[1740343702674,0.0008501,95909.0,95908.0,0.09450264]
[1740343703376,0.1572481,95909.0,95908.0,0.09450264]
[1740343704096,0.0008501,95909.0,95908.0,0.09450264]
[1740343705895,0.0008501,95909.0,95908.0,0.24990164]
[1740343707265,0.0008501,95909.0,95908.0,0.25090164]
[1740343707764,0.0008501,95909.0,95908.0,0.24990164]
[1740343707960,0.0008501,95909.0,95908.0,0.25090164]
[1740343712853,0.0008501,95909.0,95908.0,0.09450264]
[1740343729443,0.1572481,95909.0,95908.0,0.09450264]
[1740343732324,0.0008501,95909.0,95908.0,0.09450264]
[1740343733644,0.0008501,95909.0,95908.0,0.083]
[1740343733861,0.0008501,95909.0,95908.0,0.09450041]
[1740343735867,0.1572481,95909.0,95908.0,0.09450041]
[1740343739317,0.1572481,95909.0,95908.0,0.083]
[1740343739531,0.1572481,95909.0,95908.0,0.09450196]
[1740343741570,0.1572481,95909.0,95908.0,0.083]
[1740343742041,0.1572481,95909.0,95908.0,0.09450196]
[1740343750628,0.156398,95909.0,95908.0,0.09450196]
[1740343750852,0.1522481,95909.0,95908.0,0.09450196]
[1740343764032,0.1522481,95909.0,95908.0,0.083]
[1740343764382,0.1522481,95909.0,95908.0,0.09450196]
[1740343766600,0.1522481,95909.0,95908.0,0.083]
[1740343767218,0.1530981,95909.0,95908.0,0.083]
[1740343768683,0.208525,95912.0,95908.0,0.083]
[1740343768910,0.156398,95909.0,95908.0,0.083]
[1740343770301,0.156398,95909.0,95908.0,0.082]
[1740343770491,0.156398,95909.0,95908.0,0.083]
[1740343770911,0.156398,95909.0,95908.0,0.082]
[1740343771337,0.156398,95909.0,95908.0,0.083]
[1740343771906,0.156398,95909.0,95908.0,0.09450196]
[1740343774758,0.156398,95909.0,95908.0,0.083]
[1740343775184,0.156398,95909.0,95908.0,0.09450196]